fUST/lending_fUST_20250921
["ID","MTS","AMOUNT","RATE_DAILY","PERIOD"]
[386646494,1758449454663,-168.0,0.00020796,2]
[386646495,1758449454672,-168.0,0.00020809,2]
[386646496,1758449454681,-2000.0,0.00020816,2]
[386646497,1758449454691,-483.26882166,0.00020821,2]
[386646498,1758449454702,-298.9525068,0.00020821,2]
[386646499,1758449454711,-154.76423381,0.00020821,2]
[386646500,1758449454721,-180.52289267,0.00020821,2]
[386646501,1758449454731,-480.0,0.00020821,2]
[386646502,1758449454740,-480.0,0.00020821,2]
[386646503,1758449454751,-480.0,0.00020821,2]
[386646504,1758449454760,-346.53,0.00020821,2]
[386646505,1758449454769,-480.0,0.00020821,2]
[386646506,1758449454778,-480.0,0.00020821,2]
[386646507,1758449454853,-480.0,0.00020821,2]
[386646508,1758449454867,-480.0,0.00020821,2]
[386646509,1758449454877,-480.0,0.00020821,2]
[386646510,1758449454887,-480.0,0.00020821,2]
[386646511,1758449454896,-480.0,0.00020821,2]
[386646512,1758449454906,-441.52887514,0.00020821,2]
[386646513,1758449454914,-480.0,0.00020821,2]
[386646514,1758449454923,-480.0,0.00020821,2]
[386646515,1758449454933,-480.0,0.00020821,2]
[386646516,1758449454943,-480.0,0.00020821,2]
[386646517,1758449454952,-357.24425744,0.00020821,2]
[386646518,1758449454961,-480.0,0.00020821,2]
[386646519,1758449454970,-403.80446147,0.00020821,2]
[386646520,1758449454980,-480.0,0.00020821,2]
[386646521,1758449454990,-480.0,0.00020821,2]
[386646522,1758449455002,-151.0,0.00020821,2]
[386646523,1758449455011,-493.28,0.00020821,2]
[386646524,1758449455020,-480.0,0.00020821,2]
[386646525,1758449455030,-515.02431158,0.00020821,2]
[386646526,1758449455039,-895.0,0.00020821,2]
[386646527,1758449455048,-480.0,0.00020821,2]
[386646528,1758449455057,-487.61215009,0.00020821,2]
[386646529,1758449455067,-480.0,0.00020821,2]
[386646530,1758449455076,-312.19664976,0.00020821,2]
[386646531,1758449455085,-1963.68,0.00020821,2]
[386646532,1758449455094,-480.0,0.00020821,2]
[386646533,1758449455104,-480.0,0.00020821,2]
[386646534,1758449455113,-609.03,0.00020821,2]
[386646535,1758449455122,-1884.45,0.00020821,2]
[386646536,1758449455131,-480.0,0.00020821,2]
[386646537,1758449455140,-922.44,0.00020821,2]
[386646538,1758449455149,-480.0,0.00020821,2]
[386646539,1758449455159,-480.0,0.00020821,2]
[386646540,1758449455169,-556.54,0.00020821,2]
[386646541,1758449455178,-480.0,0.00020821,2]
[386646542,1758449455188,-480.0,0.00020821,2]
[386646543,1758449455197,-519.82150617,0.00020821,2]
[386646544,1758449455206,-885.02,0.00020821,2]
[386646545,1758449455215,-937.39,0.00020821,2]
[386646546,1758449455224,-480.0,0.00020821,2]
[386646547,1758449455233,-912.4,0.00020821,2]
[386646548,1758449455242,-1198.91,0.00020821,2]
[386646549,1758449455252,-11451.54,0.00020821,2]
[386646550,1758449455261,-1900.65,0.00020821,2]
[386646551,1758449455270,-480.0,0.00020821,2]
[386646552,1758449455280,-480.0,0.00020821,2]
[386646553,1758449455290,-480.0,0.00020821,2]
[386646554,1758449455299,-480.0,0.00020821,2]
[386646555,1758449455308,-480.0,0.00020821,2]
[386646556,1758449455318,-480.0,0.00020821,2]
[386646557,1758449455327,-704.22,0.00020821,2]
[386646558,1758449455337,-480.0,0.00020821,2]
[386646559,1758449455347,-480.0,0.00020821,2]
[386646560,1758449455356,-480.0,0.00020821,2]
[386646561,1758449455365,-480.0,0.00020821,2]
[386646562,1758449455374,-480.0,0.00020821,2]
[386646563,1758449455384,-480.0,0.00020821,2]
[386646564,1758449455393,-480.0,0.00020821,2]
[386646565,1758449455403,-480.0,0.00020821,2]
[386646566,1758449455417,-480.0,0.00020821,2]
[386646567,1758449455427,-480.0,0.00020821,2]
[386646568,1758449455436,-279.32169311,0.00020821,2]
[386646569,1758449455445,-480.0,0.00020821,2]
[386646570,1758449455455,-885.37,0.00020821,2]
[386646571,1758449455465,-480.0,0.00020821,2]
[386646572,1758449455474,-480.0,0.00020821,2]
[386646573,1758449455484,-480.0,0.00020821,2]
[386646574,1758449455494,-2976.51,0.00020821,2]
[386646575,1758449455504,-480.0,0.00020821,2]
[386646576,1758449455514,-1683.02,0.00020821,2]
[386646577,1758449455523,-643.42,0.00020821,2]
[386646578,1758449455533,-581.85,0.00020821,2]
[386646579,1758449455543,-721.89,0.00020821,2]
[386646580,1758449455552,-480.0,0.00020821,2]
[386646581,1758449455562,-966.67,0.00020821,2]
[386646582,1758449455571,-480.0,0.00020821,2]
[386646583,1758449455581,-480.0,0.00020821,2]
[386646584,1758449455591,-480.0,0.00020821,2]
[386646585,1758449455600,-480.0,0.00020821,2]
[386646586,1758449455609,-625.09752809,0.00020821,2]
[386646587,1758449455618,-595.29,0.00020821,2]
[386646588,1758449455628,-168.4007875,0.00020821,2]
[386646589,1758449455637,-480.0,0.00020821,2]
[386646590,1758449455647,-200.0,0.00020821,2]
[386646591,1758449455656,-1353.47,0.00020821,2]
[386646592,1758449455666,-500.0,0.00020822,2]
[386646593,1758449455675,-156.40004899,0.00020822,2]
[386646594,1758449455685,-151.0,0.00020822,2]
[386646595,1758449455694,-399.784695,0.00020822,2]
[386646596,1758449455704,-399.784695,0.00020822,2]
[386646597,1758449455714,-399.784695,0.00020822,2]
[386646598,1758449455723,-399.784695,0.00020822,2]
[386646599,1758449455732,-160.0,0.00020824,2]
[386646600,1758449455742,-160.0,0.00020824,2]
[386646601,1758449455752,-3679.4094947,0.00020845,2]
[386646602,1758449455762,-168.0,0.00020853,2]
[386646603,1758449455771,-168.0,0.00020854,2]
[386646604,1758449455782,-1500.0,0.00020868,2]
[386646605,1758449455792,-168.0,0.00020879,2]
[386646606,1758449455802,-1680.0,0.00020893,2]
[386646607,1758449455811,-13151.11681385,0.00020972,2]
[386646608,1758449455822,-168.0,0.00020978,2]
[386646609,1758449455831,-168.0,0.00020987,2]
[386646610,1758449455841,-260.0,0.00020998,2]
[386646611,1758449455852,-3000.0,0.00021,2]
[386646612,1758449455861,-3000.0,0.0002101,2]
[386646613,1758449455871,-3000.0,0.0002102,2]
[386646614,1758449455881,-3000.0,0.0002103,2]
[386646615,1758449455890,-3000.0,0.0002104,2]
[386646616,1758449455900,-1006.66059614,0.0002104,2]
[386646617,1758449455909,-1000.0,0.0002104,2]
[386646618,1758449455919,-1000.0,0.0002104,2]
[386646619,1758449455930,-3000.0,0.0002105,2]
[386646620,1758449455939,-3000.0,0.0002106,2]
[386646621,1758449455949,-1500.0,0.00021068,2]
[386646622,1758449455958,-389.85371098,0.00021068,2]
[386646623,1758449455968,-1500.0,0.00021068,2]
[386646624,1758449455977,-1504.8872314,0.00021068,2]
[386646625,1758449455986,-1500.0,0.00021068,2]
[386646626,1758449455995,-508.12953831,0.00021068,2]
[386646627,1758449456005,-1525.82421191,0.00021068,2]
[386646628,1758449456015,-825.92532273,0.00021068,2]
[386646629,1758449456024,-3000.0,0.0002107,2]
[386646630,1758449456034,-3000.0,0.0002108,2]
[386646631,1758449456044,-3000.0,0.0002109,2]
[386646632,1758449456054,-480.0,0.00021095,2]
[386646633,1758449456063,-451.59394837,0.00021095,2]
[386646634,1758449456074,-480.0,0.00021095,2]
[386646635,1758449456084,-480.0,0.00021095,2]
[386646636,1758449456094,-480.0,0.00021095,2]
[386646637,1758449456104,-480.0,0.00021095,2]
[386646638,1758449456114,-500.56870023,0.00021095,2]
[386646639,1758449456124,-480.0,0.00021095,2]
[386646640,1758449456133,-480.0,0.00021095,2]
[386646641,1758449456143,-480.0,0.00021095,2]
[386646642,1758449456152,-480.0,0.00021095,2]
[386646643,1758449456162,-480.0,0.00021095,2]
[386646644,1758449456172,-480.0,0.00021095,2]
[386646645,1758449456182,-480.0,0.00021095,2]
[386646646,1758449456191,-538.01893556,0.00021095,2]
[386646647,1758449456271,-463.23459873,0.00021095,2]
[386646648,1758449456281,-480.0,0.00021095,2]
[386646649,1758449456291,-895.0,0.00021095,2]
[386646650,1758449456301,-480.0,0.00021095,2]
[386646651,1758449456311,-480.0,0.00021095,2]
[386646652,1758449456321,-1963.68,0.00021095,2]
[386646653,1758449456330,-480.0,0.00021095,2]
[386646654,1758449456340,-480.0,0.00021095,2]
[386646655,1758449456349,-609.03,0.00021095,2]
[386646656,1758449456359,-1884.45,0.00021095,2]
[386646657,1758449456368,-480.0,0.00021095,2]
[386646658,1758449456377,-922.44,0.00021095,2]
[386646659,1758449456387,-492.57521216,0.00021095,2]
[386646660,1758449456397,-480.0,0.00021095,2]
[386646661,1758449456406,-556.54,0.00021095,2]
[386646662,1758449456418,-428.30041284,0.00021095,2]
[386646663,1758449456428,-480.0,0.00021095,2]
[386646664,1758449456437,-885.02,0.00021095,2]
[386646665,1758449456446,-937.39,0.00021095,2]
[386646666,1758449456456,-509.80161875,0.00021095,2]
[386646667,1758449456466,-912.4,0.00021095,2]
[386646668,1758449456475,-1198.91,0.00021095,2]
[386646669,1758449456485,-11451.54,0.00021095,2]
[386646670,1758449456494,-1900.65,0.00021095,2]
[386646671,1758449456505,-480.0,0.00021095,2]
[386646672,1758449456515,-480.0,0.00021095,2]
[386646673,1758449456524,-480.0,0.00021095,2]
[386646674,1758449456533,-480.0,0.00021095,2]
[386646675,1758449456543,-480.0,0.00021095,2]
[386646676,1758449456553,-252.6,0.00021095,2]
[386646677,1758449456563,-480.0,0.00021095,2]
[386646678,1758449456572,-353.318887,0.00021095,2]
[386646679,1758449456581,-353.318887,0.00021095,2]
[386646680,1758449456591,-704.22,0.00021095,2]
[386646681,1758449456602,-353.318887,0.00021095,2]
[386646682,1758449456611,-480.0,0.00021095,2]
[386646683,1758449456621,-353.318887,0.00021095,2]
[386646684,1758449456631,-480.0,0.00021095,2]
[386646685,1758449456641,-480.0,0.00021095,2]
[386646686,1758449456650,-480.0,0.00021095,2]
[386646687,1758449456660,-480.0,0.00021095,2]
[386646688,1758449456670,-480.0,0.00021095,2]
[386646689,1758449456680,-480.0,0.00021095,2]
[386646690,1758449456689,-480.0,0.00021095,2]
[386646691,1758449456699,-480.0,0.00021095,2]
[386646692,1758449456709,-480.0,0.00021095,2]
[386646693,1758449456718,-480.0,0.00021095,2]
[386646694,1758449456727,-885.37,0.00021095,2]
[386646695,1758449456737,-480.0,0.00021095,2]
[386646696,1758449456746,-480.0,0.00021095,2]
[386646697,1758449456756,-480.0,0.00021095,2]
[386646698,1758449456765,-2976.51,0.00021095,2]
[386646699,1758449456774,-548.41654058,0.00021095,2]
[386646700,1758449456784,-1683.02,0.00021095,2]
[386646701,1758449456793,-643.42,0.00021095,2]
[386646702,1758449456803,-581.85,0.00021095,2]
[386646703,1758449456812,-151.0,0.00021095,2]
[386646704,1758449456821,-721.89,0.00021095,2]
[386646705,1758449456831,-480.0,0.00021095,2]
[386646706,1758449456840,-151.0,0.00021095,2]
[386646707,1758449456850,-966.67,0.00021095,2]
[386646708,1758449456861,-480.0,0.00021095,2]
[386646709,1758449456870,-480.0,0.00021095,2]
[386646710,1758449456881,-151.0,0.00021095,2]
[386646711,1758449456891,-480.0,0.00021095,2]
[386646712,1758449456900,-480.0,0.00021095,2]
[386646713,1758449456910,-366.723799,0.00021095,2]
[386646714,1758449456919,-366.723799,0.00021095,2]
[386646715,1758449456929,-366.723799,0.00021095,2]
[386646716,1758449456939,-595.29,0.00021095,2]
[386646717,1758449456950,-366.723799,0.00021095,2]
[386646718,1758449456960,-480.0,0.00021095,2]
[386646719,1758449456971,-500.0,0.00021096,2]
[386646720,1758449456980,-179.09968957,0.00021096,2]
[386646721,1758449456990,-3000.0,0.000211,2]
[386646722,1758449456999,-3000.0,0.0002111,2]
[386646723,1758449457010,-4000.0,0.00021111,4]
[386646724,1758449457020,-500.0,0.00021116,2]
[386646725,1758449457031,-2000.0,0.00021116,2]
[386646726,1758449457040,-2000.0,0.00021116,2]
[386646727,1758449457050,-4557.992543,0.0002112,2]
[386646728,1758449457059,-11480.93,0.00021218,2]
[386646729,1758449457070,-820.9872298,0.00021284,2]
[386646730,1758449457079,-228.0,0.00021288,4]
[386646731,1758449457089,-151.0,0.00021288,2]
[386646732,1758449457099,-1514.68386253,0.00021364,2]
[386646733,1758449457108,-480.0,0.00021369,2]
[386646734,1758449457117,-480.0,0.00021369,2]
[386646735,1758449457127,-480.0,0.00021369,2]
[386646736,1758449457136,-480.0,0.00021369,2]
[386646737,1758449457146,-480.0,0.00021369,2]
[386646738,1758449457155,-480.0,0.00021369,2]
[386646739,1758449457165,-480.0,0.00021369,2]
[386646740,1758449457175,-480.0,0.00021369,2]
[386646741,1758449457185,-480.0,0.00021369,2]
[386646742,1758449457195,-480.0,0.00021369,2]
[386646743,1758449457205,-480.0,0.00021369,2]
[386646744,1758449457214,-895.0,0.00021369,2]
[386646745,1758449457224,-480.0,0.00021369,2]
[386646746,1758449457234,-480.0,0.00021369,2]
[386646747,1758449457244,-1963.68,0.00021369,2]
[386646748,1758449457253,-480.0,0.00021369,2]
[386646749,1758449457262,-480.0,0.00021369,2]
[386646750,1758449457272,-609.03,0.00021369,2]
[386646751,1758449457282,-480.0,0.00021369,2]
[386646752,1758449457292,-151.0,0.00021369,2]
[386646753,1758449457301,-1884.45,0.00021369,2]
[386646754,1758449457312,-922.44,0.00021369,2]
[386646755,1758449457321,-480.0,0.00021369,2]
[386646756,1758449457331,-556.54,0.00021369,2]
[386646757,1758449457341,-399.784695,0.00021369,2]
[386646758,1758449457350,-399.784695,0.00021369,2]
[386646759,1758449457361,-399.784695,0.00021369,2]
[386646760,1758449457370,-399.784695,0.00021369,2]
[386646761,1758449457380,-480.0,0.00021369,2]
[386646762,1758449457391,-885.02,0.00021369,2]
[386646763,1758449457402,-937.39,0.00021369,2]
[386646764,1758449457414,-912.4,0.00021369,2]
[386646765,1758449457425,-1198.91,0.00021369,2]
[386646766,1758449457435,-11451.54,0.00021369,2]
[386646767,1758449457445,-1900.65,0.00021369,2]
[386646768,1758449457455,-480.0,0.00021369,2]
[386646769,1758449457465,-480.0,0.00021369,2]
[386646770,1758449457475,-301.14187502,0.00021369,2]
[386646771,1758449457485,-480.0,0.00021369,2]
[386646772,1758449457495,-480.0,0.00021369,2]
[386646773,1758449457505,-480.0,0.00021369,2]
[386646774,1758449457516,-704.22,0.00021369,2]
[386646775,1758449457583,-480.0,0.00021369,2]
[386646776,1758449457602,-480.0,0.00021369,2]
[386646777,1758449457612,-480.0,0.00021369,2]
[386646778,1758449457622,-480.0,0.00021369,2]
[386646779,1758449457632,-480.0,0.00021369,2]
[386646780,1758449457642,-480.0,0.00021369,2]
[386646781,1758449457653,-480.0,0.00021369,2]
[386646782,1758449457662,-480.0,0.00021369,2]
[386646783,1758449457673,-480.0,0.00021369,2]
[386646784,1758449457683,-480.0,0.00021369,2]
[386646785,1758449457693,-480.0,0.00021369,2]
[386646786,1758449457703,-885.37,0.00021369,2]
[386646787,1758449457714,-480.0,0.00021369,2]
[386646788,1758449457725,-494.57325951,0.00021369,2]
[386646789,1758449457735,-480.0,0.00021369,2]
[386646790,1758449457746,-2976.51,0.00021369,2]
[386646791,1758449457756,-1683.02,0.00021369,2]
[386646792,1758449457767,-643.42,0.00021369,2]
[386646793,1758449457778,-581.85,0.00021369,2]
[386646794,1758449457790,-721.89,0.00021369,2]
[386646795,1758449457801,-480.0,0.00021369,2]
[386646796,1758449457812,-966.67,0.00021369,2]
[386646797,1758449457822,-480.0,0.00021369,2]
[386646798,1758449457832,-480.0,0.00021369,2]
[386646799,1758449457843,-480.0,0.00021369,2]
[386646800,1758449457853,-480.0,0.00021369,2]
[386646802,1758449457864,-595.29,0.00021369,2]
[386646803,1758449457874,-480.0,0.00021369,2]
[386646804,1758449457885,-500.0,0.0002137,2]
[386646805,1758449457895,-168.0,0.0002137,2]
[386646806,1758449457905,-160.0,0.00021374,3]
[386646807,1758449457915,-168.0,0.00021401,2]
[386646808,1758449457925,-501.8487975,0.00021416,2]
[386646809,1758449457936,-168.0,0.00021437,2]
[386646810,1758449457946,-360.0,0.00021546,2]
[386646811,1758449457956,-640.46405054,0.00021553,2]
[386646812,1758449457966,-500.0,0.00021588,2]
[386646813,1758449457977,-947.9875069,0.00021588,2]
[386646814,1758449457987,-151.0,0.000216,4]
[386646815,1758449457997,-2000.0,0.00021616,2]
[386646816,1758449458007,-157.3834965,0.00021616,2]
[386646817,1758449458018,-2000.0,0.00021616,2]
[386646818,1758449458028,-441.0,0.00021633,2]
[386646819,1758449458039,-480.0,0.00021643,2]
[386646820,1758449458049,-480.0,0.00021643,2]
[386646821,1758449458059,-480.0,0.00021643,2]
[386646822,1758449458070,-480.0,0.00021643,2]
[386646823,1758449458080,-480.0,0.00021643,2]
[386646824,1758449458091,-480.0,0.00021643,2]
[386646825,1758449458102,-480.0,0.00021643,2]
[386646826,1758449458113,-496.06124471,0.00021643,2]
[386646827,1758449458124,-491.6859979,0.00021643,2]
[386646828,1758449458135,-480.0,0.00021643,2]
[386646829,1758449458145,-895.0,0.00021643,2]
[386646830,1758449458157,-480.0,0.00021643,2]
[386646831,1758449458168,-480.0,0.00021643,2]
[386646832,1758449458179,-1963.68,0.00021643,2]
[386646833,1758449458190,-480.0,0.00021643,2]
[386646834,1758449458201,-527.06863313,0.00021643,2]
[386646835,1758449458211,-609.03,0.00021643,2]
[386646836,1758449458221,-480.0,0.00021643,2]
[386646837,1758449458231,-1884.45,0.00021643,2]
[386646838,1758449458240,-922.44,0.00021643,2]
[386646839,1758449458250,-480.0,0.00021643,2]
[386646840,1758449458259,-556.54,0.00021643,2]
[386646841,1758449458269,-480.0,0.00021643,2]
[386646842,1758449458278,-885.02,0.00021643,2]
[386646843,1758449458290,-937.39,0.00021643,2]
[386646844,1758449458300,-912.4,0.00021643,2]
[386646845,1758449458310,-1198.91,0.00021643,2]
[386646846,1758449458321,-11451.54,0.00021643,2]
[386646847,1758449458333,-1900.65,0.00021643,2]
[386646848,1758449458344,-480.0,0.00021643,2]
[386646849,1758449458354,-480.0,0.00021643,2]
[386646850,1758449458363,-480.0,0.00021643,2]
[386646851,1758449458375,-480.0,0.00021643,2]
[386646852,1758449458385,-480.0,0.00021643,2]
[386646853,1758449458395,-704.22,0.00021643,2]
[386646854,1758449458405,-480.0,0.00021643,2]
[386646855,1758449458419,-480.0,0.00021643,2]
[386646856,1758449458429,-515.78024332,0.00021643,2]
[386646857,1758449458440,-480.0,0.00021643,2]
[386646858,1758449458450,-448.40833389,0.00021643,2]
[386646859,1758449458459,-480.0,0.00021643,2]
[386646860,1758449458469,-547.36261781,0.00021643,2]
[386646861,1758449458481,-480.0,0.00021643,2]
[386646862,1758449458492,-186.82874435,0.00021643,2]
[386646863,1758449458505,-480.0,0.00021643,2]
[386646864,1758449458516,-885.37,0.00021643,2]
[386646865,1758449458527,-480.0,0.00021643,2]
[386646866,1758449458540,-480.0,0.00021643,2]
[386646867,1758449458551,-2976.51,0.00021643,2]
[386646868,1758449458563,-1683.02,0.00021643,2]
[386646869,1758449458572,-643.42,0.00021643,2]
[386646870,1758449458583,-581.85,0.00021643,2]
[386646871,1758449458594,-721.89,0.00021643,2]
[386646872,1758449458605,-480.0,0.00021643,2]
[386646873,1758449458615,-966.67,0.00021643,2]
[386646874,1758449458625,-480.0,0.00021643,2]
[386646875,1758449458635,-480.0,0.00021643,2]
[386646876,1758449458645,-480.0,0.00021643,2]
[386646877,1758449458657,-480.0,0.00021643,2]
[386646878,1758449458669,-595.29,0.00021643,2]
[386646879,1758449458679,-480.0,0.00021643,2]
[386646880,1758449458689,-500.0,0.00021644,2]
[386646881,1758449458701,-184.761233,0.0002165,2]
[386646882,1758449458713,-2500.0,0.00021664,2]
[386646883,1758449458725,-500.0,0.000217,2]
[386646884,1758449458737,-500.0,0.000217,2]
[386646885,1758449458746,-500.0,0.00021707,2]
[386646886,1758449458756,-503.37110723,0.00021707,2]
[386646887,1758449458765,-500.0,0.00021707,2]
[386646888,1758449458775,-500.0,0.00021707,2]
[386646889,1758449458787,-500.0,0.00021707,2]
[386646890,1758449458798,-500.0,0.00021707,2]
[386646891,1758449458808,-500.0,0.00021707,2]
[386646892,1758449458819,-500.0,0.00021716,2]
[386646893,1758449458830,-500.0,0.00021716,2]
[386646894,1758449458840,-500.0,0.00021716,2]
[386646895,1758449458913,-500.0,0.00021716,2]
[386646896,1758449458924,-500.0,0.00021716,2]
[386646897,1758449458935,-500.0,0.00021716,2]
[386646898,1758449458946,-473.8330752,0.00021716,2]
[386646899,1758449458957,-500.0,0.00021716,2]
[386646900,1758449458969,-500.0,0.00021716,2]
[386646901,1758449458981,-500.0,0.00021716,2]
[386646902,1758449458990,-500.0,0.00021716,2]
[386646903,1758449459001,-500.0,0.00021716,2]
[386646904,1758449459010,-500.0,0.00021716,2]
[386646905,1758449459020,-500.0,0.00021716,2]
[386646906,1758449459030,-500.0,0.00021716,2]
[386646907,1758449459040,-500.0,0.00021723,2]
[386646908,1758449459050,-500.0,0.00021723,2]
[386646909,1758449459062,-168.0,0.00021762,2]
[386646910,1758449459072,-168.0,0.00021763,2]
[386646911,1758449459082,-1500.0,0.00021808,2]
[386646912,1758449459093,-407.2827298,0.0002189,2]
[386646913,1758449459104,-151.0,0.000219,4]
[386646914,1758449459116,-306.86,0.00021907,3]
[386646915,1758449459128,-200.0,0.00021917,2]
[386646916,1758449459138,-252.17080021,0.00021917,2]
[386646917,1758449459148,-480.0,0.00021917,2]
[386646918,1758449459160,-480.0,0.00021917,2]
[386646919,1758449459170,-480.0,0.00021917,2]
[386646920,1758449459181,-480.0,0.00021917,2]
[386646921,1758449459192,-387.95985108,0.00021917,2]
[386646922,1758449459203,-480.0,0.00021917,2]
[386646923,1758449459212,-500.0,0.00021917,2]
[386646924,1758449459221,-500.0,0.00021917,2]
[386646925,1758449459231,-500.0,0.00021917,2]
[386646926,1758449459241,-500.0,0.00021917,2]
[386646927,1758449459251,-507.87514399,0.00021917,2]
[386646928,1758449459262,-480.0,0.00021917,2]
[386646929,1758449459272,-480.0,0.00021917,2]
[386646930,1758449459283,-895.0,0.00021917,2]
[386646931,1758449459293,-480.0,0.00021917,2]
[386646932,1758449459304,-480.0,0.00021917,2]
[386646933,1758449459314,-1963.68,0.00021917,2]
[386646934,1758449459324,-480.0,0.00021917,2]
[386646935,1758449459335,-609.03,0.00021917,2]
[386646936,1758449459346,-480.0,0.00021917,2]
[386646937,1758449459356,-1884.45,0.00021917,2]
[386646938,1758449459366,-922.44,0.00021917,2]
[386646939,1758449459377,-480.0,0.00021917,2]
[386646940,1758449459388,-556.54,0.00021917,2]
[386646941,1758449459398,-480.0,0.00021917,2]
[386646942,1758449459408,-885.02,0.00021917,2]
[386646943,1758449459423,-937.39,0.00021917,2]
[386646944,1758449459434,-912.4,0.00021917,2]
[386646945,1758449459445,-1198.91,0.00021917,2]
[386646946,1758449459457,-11451.54,0.00021917,2]
[386646947,1758449459469,-1900.65,0.00021917,2]
[386646948,1758449459481,-480.0,0.00021917,2]
[386646949,1758449459492,-480.0,0.00021917,2]
[386646950,1758449459505,-480.0,0.00021917,2]
[386646951,1758449459515,-480.0,0.00021917,2]
[386646952,1758449459525,-480.0,0.00021917,2]
[386646953,1758449459536,-480.0,0.00021917,2]
[386646954,1758449459546,-480.0,0.00021917,2]
[386646955,1758449459557,-480.0,0.00021917,2]
[386646956,1758449459567,-480.0,0.00021917,2]
[386646957,1758449459579,-480.0,0.00021917,2]
[386646958,1758449459592,-480.0,0.00021917,2]
[386646959,1758449459603,-490.48910028,0.00021917,2]
[386646960,1758449459615,-480.0,0.00021917,2]
[386646961,1758449459627,-480.0,0.00021917,2]
[386646962,1758449459638,-211.46,0.00021917,2]
[386646963,1758449459650,-480.0,0.00021917,2]
[386646964,1758449459662,-704.22,0.00021917,2]
[386646965,1758449459675,-480.0,0.00021917,2]
[386646966,1758449459687,-480.0,0.00021917,2]
[386646967,1758449459698,-480.0,0.00021917,2]
[386646968,1758449459710,-480.0,0.00021917,2]
[386646969,1758449459722,-480.0,0.00021917,2]
[386646970,1758449459733,-341.28615264,0.00021917,2]
[386646971,1758449459743,-885.37,0.00021917,2]
[386646972,1758449459755,-480.0,0.00021917,2]
[386646973,1758449459766,-480.0,0.00021917,2]
[386646974,1758449459777,-2976.51,0.00021917,2]
[386646975,1758449459788,-1683.02,0.00021917,2]
[386646976,1758449459799,-643.42,0.00021917,2]
[386646977,1758449459810,-581.85,0.00021917,2]
[386646978,1758449459820,-721.89,0.00021917,2]
[386646979,1758449459832,-388.93709765,0.00021917,2]
[386646980,1758449459842,-966.67,0.00021917,2]
[386646981,1758449459852,-480.0,0.00021917,2]
[386646982,1758449459863,-480.0,0.00021917,2]
[386646983,1758449459874,-480.0,0.00021917,2]
[386646984,1758449459885,-595.29,0.00021917,2]
[386646985,1758449459895,-480.0,0.00021917,2]
[386646986,1758449459906,-500.0,0.00021918,2]
[386646987,1758449459916,-175.939137,0.00021918,2]
[386646988,1758449459926,-168.0,0.00021924,2]
[386646989,1758449459938,-168.0,0.00021939,2]
[386646990,1758449459950,-5011.83,0.00022,7]
[386646991,1758449459962,-669.16,0.00022,2]
[386646992,1758449459974,-279.44808166,0.00022039,7]
[386646993,1758449459985,-13151.11681385,0.00022044,2]
[386646994,1758449459997,-168.0,0.00022061,2]